fUST/lending_fUST_20250104
["ID","MTS","AMOUNT","RATE_DAILY","PERIOD"]
[347633284,1735991438433,-587.0,0.00016839,2]
[347633285,1735991438444,-151.0,0.00016845,2]
[347633286,1735991438454,-500.0,0.00017026,2]
[347633287,1735991438465,-557.56154367,0.0001764,2]
[347633288,1735991438475,-151.0,0.00017851,2]
[347633289,1735991438486,-151.0,0.00017851,2]
[347633290,1735991438495,-151.0,0.00017851,2]
[347633291,1735991438505,-153.6400067,0.00017878,2]
[347633292,1735991438515,-161.0270252,0.000179,2]
[347633293,1735991438524,-151.0,0.00018,2]
[347633294,1735991438534,-151.0,0.00018,2]
[347633295,1735991438544,-253.213138,0.00018,2]
[347633296,1735991438554,-151.0,0.00018,2]
[347633297,1735991438564,-151.0,0.00018,2]
[347633298,1735991438574,-151.0,0.00018,2]
[347633299,1735991438586,-151.0,0.00018,2]
[347633300,1735991438596,-151.0,0.00018,2]
[347633301,1735991438605,-151.0,0.00018,2]
[347633302,1735991438615,-151.0,0.00018,2]
[347633303,1735991438627,-151.0,0.00018,2]
[347633304,1735991438637,-276.45544,0.00018,2]
[347633305,1735991438647,-151.0,0.00018,2]
[347633306,1735991438657,-151.0,0.00018,2]
[347633307,1735991438668,-7330.89454898,0.00018,2]
[347633308,1735991438677,-2222.35043148,0.00018,2]
[347633309,1735991438689,-5108.54411743,0.00018,2]
[347633310,1735991438699,-4307.77967607,0.00018,2]
[347633311,1735991438711,-3023.11487284,0.00018,2]
[347633312,1735991438722,-7330.89454891,0.00018,2]
[347633313,1735991438732,-7330.89454891,0.00018,2]
[347633314,1735991438741,-4896.44085462,0.00018,2]
[347633324,1735991440293,-2434.45369429,0.00018,2]
[347633326,1735991440303,-7330.89454891,0.00018,2]
[347633328,1735991440312,-7330.89454891,0.00018,2]
[347633331,1735991440321,-5339.94285028,0.00018,2]
[347633436,1735991443320,-1990.95169863,0.00018,2]
[347633437,1735991443330,-7330.89454891,0.00018072,2]
[347633438,1735991443339,-616.55760111,0.0001808,2]
[347633439,1735991443350,-309.911,0.0001814,2]
[347633440,1735991443361,-529.924,0.0001818,2]
[347633441,1735991443370,-2320.0,0.0001818,2]
[347633442,1735991443379,-394.0,0.00018184,2]
[347633443,1735991443388,-616.55760111,0.0001831,2]
[347633444,1735991443397,-7330.89454891,0.00018314,2]
[347633445,1735991443407,-151.0,0.00018348,2]
[347633446,1735991443416,-59.22852969,0.00018448,2]
[347633518,1735992632343,-1024.04357399,0.00014991,2]
[347633521,1735992632354,-1024.04357399,0.00014997,2]
[347633523,1735992632364,-1024.04357399,0.00014997,2]
[347633525,1735992632373,-185.7253833,0.00015741,2]
[347633527,1735992632382,-185.7253833,0.000159,2]
[347633529,1735992632392,-185.8272409,0.0001672,2]
[347633531,1735992632401,-300.0,0.00017866,2]
[347633533,1735992632410,-370.0,0.00017866,2]
[347633535,1735992632420,-785.59077053,0.00017867,2]
[347633627,1735992638237,-2701.7988492,0.00017689,2]
[347633629,1735992638247,-13735.47185957,0.00017867,2]
[347633631,1735992638257,-3971.1734551,0.00017873,2]
[347633633,1735992638267,-196.36476911,0.00017981,2]
[347633635,1735992638276,-296.926,0.0001814,2]
[347633637,1735992638285,-418.8929393,0.00018575,2]
[347633639,1735992638295,-428.9556674,0.00018575,2]
[347633641,1735992638304,-152.21,0.000186,2]
[347633643,1735992638313,-2320.0,0.00018636,2]
[347633645,1735992638322,-394.0,0.00018636,2]
[347633647,1735992638331,-151.0,0.000187,2]
[347633648,1735992638341,-278.78077187,0.00018808,2]
[347633650,1735992638350,-151.0,0.00018811,4]
[347633652,1735992638359,-4642.89988116,0.000189,2]
[347633654,1735992638369,-1721.66522244,0.000189,2]
[347633656,1735992638378,-183.3318414,0.00018908,2]
[347633658,1735992638387,-151.0,0.00018912,4]
[347633660,1735992638397,-1849.67280333,0.00018998,2]
[347633663,1735992638406,-1006.0,0.00019,4]
[347633665,1735992638416,-302.8788636,0.00019,2]
[347633667,1735992638425,-225.834,0.00019014,2]
[347633669,1735992638434,-151.0,0.00019014,4]
[347633671,1735992638443,-1361.92941864,0.00019038,2]
[347633673,1735992638455,-1722.3396068,0.00019038,2]
[347633675,1735992638467,-1497.359927,0.00019038,2]
[347633682,1735992638519,-61.27092853,0.00019038,2]
[347633683,1735992638528,-500.0,0.00019073,2]
[347633685,1735992638538,-152.1311832,0.00019073,2]
[347633686,1735992638547,-505.29883538,0.00019073,2]
[347633688,1735992638557,-380.08632422,0.00019097,2]
[347633705,1735992640323,-229.83549206,0.00019097,2]
[347633706,1735992640333,-500.0,0.00019097,2]
[347633707,1735992640343,-500.0,0.00019097,2]
[347633708,1735992640352,-500.0,0.00019097,2]
[347633709,1735992640361,-500.0,0.00019097,2]
[347633710,1735992640370,-500.0,0.00019097,2]
[347633711,1735992640379,-500.0,0.00019097,2]
[347633712,1735992640388,-500.0,0.00019097,2]
[347633713,1735992640397,-603.0,0.00019097,2]
[347633714,1735992640406,-500.0,0.00019097,2]
[347633715,1735992640416,-500.0,0.00019097,2]
[347633716,1735992640425,-500.0,0.00019097,2]
[347633717,1735992640435,-500.0,0.00019097,2]
[347633718,1735992640559,-500.0,0.00019097,2]
[347633719,1735992640570,-500.0,0.00019097,2]
[347633720,1735992640580,-500.0,0.00019097,2]
[347633721,1735992640591,-500.0,0.00019097,2]
[347633722,1735992640600,-500.0,0.00019097,2]
[347633723,1735992640609,-500.0,0.00019097,2]
[347633724,1735992640620,-500.0,0.00019097,2]
[347633725,1735992640629,-500.0,0.00019097,2]
[347633726,1735992640643,-500.0,0.00019097,2]
[347633727,1735992640652,-500.0,0.00019097,2]
[347633728,1735992640661,-500.0,0.00019097,2]
[347633729,1735992640670,-500.0,0.00019097,2]
[347633730,1735992640680,-500.0,0.00019097,2]
[347633731,1735992640689,-341.81915133,0.00019097,2]
[347633732,1735992640698,-500.0,0.00019097,2]
[347633733,1735992640706,-77.41284416,0.00019097,2]
[347633783,1735993408974,1000.0,0.00025,120]
[347633800,1735993750080,300.0,0.00025,120]
[347633912,1735993832551,-300.0,0.00016947,2]
[347633914,1735993832560,-19717.74858,0.00016947,2]
[347633917,1735993832572,-11628.25142,0.00016947,2]
[347633919,1735993832581,-10471.26073185,0.00016948,2]
[347633923,1735993832611,-12284.41498455,0.00016948,2]
[347633925,1735993832620,-4242.0857584,0.00016992,2]
[347633939,1735993832739,-181.138002,0.00017083,2]
[347633941,1735993832748,-1639.9774378,0.00017847,2]
[347633943,1735993832758,-1352.11775374,0.0001787,2]
[347634016,1735993838466,-45.95727896,0.0001787,2]
[347634017,1735993838476,-243.93317536,0.00017917,2]
[347634018,1735993838486,-208.88207447,0.00017991,2]
[347634019,1735993838495,-3038.25921302,0.00018014,2]
[347634020,1735993838523,-11181.27563342,0.00018014,2]
[347634021,1735993838532,-860.01573398,0.00018014,2]
[347634022,1735993838541,-2097.3759321,0.00018091,2]
[347634023,1735993838550,-284.733,0.0001814,2]
[347634024,1735993838559,-215.3997763,0.0001821,2]
[347634025,1735993838568,-148.48591114,0.00018243,2]
[347634066,1735993840524,-60.39616332,0.00018243,2]
[347634067,1735993840534,-208.88207446,0.00018495,2]
[347634068,1735993840543,-420.0,0.00018511,2]
[347634069,1735993840553,-243.93317535,0.00018582,2]
[347634070,1735993840562,-216.135,0.00018589,2]
[347634071,1735993840572,-1272.907,0.00018685,2]
[347634072,1735993840581,-227.80543815,0.00018685,2]
[347634073,1735993840593,-166.19456185,0.00018685,2]
[347634074,1735993840602,-208.88207446,0.00018746,2]
[347634075,1735993840611,-4333.37322249,0.000189,2]
[347634076,1735993840621,-152.21,0.00018973,2]
[347634077,1735993840630,-500.0,0.00018998,5]
[347634078,1735993840640,-208.88207446,0.00018998,2]
[347634079,1735993840649,-3304.9141633,0.00018998,2]
[347634080,1735993840658,-4333.37322223,0.00019038,2]
[347634081,1735993840667,-500.52197667,0.00019073,2]
[347634082,1735993840677,-500.0,0.00019073,2]
[347634083,1735993840686,-501.28433858,0.00019073,2]
[347634084,1735993840695,-582.77319186,0.00019073,2]
[347634085,1735993840704,-200.2431877,0.00019073,2]
[347634086,1735993840713,-151.12874944,0.00019073,2]
[347634087,1735993840722,-152.1282296,0.00019073,2]
[347634088,1735993840731,-155.13076047,0.00019073,2]
[347634089,1735993840741,-261.639319,0.00019073,2]
[347634090,1735993840750,-501.64557748,0.00019073,2]
[347634091,1735993840759,-501.3383945,0.00019073,2]
[347634092,1735993840768,-160.57967931,0.00019073,2]
[347634093,1735993840777,-168.14361032,0.00019073,2]
[347634094,1735993840786,-500.0,0.00019073,2]
[347634095,1735993840795,-500.0,0.00019073,2]
[347634096,1735993840909,-283.48671577,0.00019073,2]
[347634097,1735993840918,-468.58902097,0.00019073,2]
[347634098,1735993840928,-514.59485485,0.00019073,2]
[347634099,1735993840937,-265.71868349,0.00019073,2]
[347634100,1735993840946,-619.63903748,0.00019073,2]
[347634101,1735993840955,-151.0,0.00019073,2]
[347634102,1735993840964,-500.0,0.00019094,2]
[347634103,1735993840973,-500.0,0.00019094,2]
[347634104,1735993840982,-48.69938012,0.00019094,2]
[347634134,1735993846519,-451.30061988,0.00019094,2]
[347634135,1735993846529,-500.0,0.00019094,2]
[347634136,1735993846539,-110.49928012,0.00019094,2]
[347634227,1735995032728,-420.1547384,0.00016705,2]
[347634229,1735995032737,-420.1547384,0.00016874,2]
[347634231,1735995032748,-420.1547384,0.00017216,2]
[347634233,1735995032758,-300.0,0.00017939,2]
[347634235,1735995032767,-13151.6786259,0.00017941,2]
[347634237,1735995032777,-204.16340815,0.0001804,2]
[347634239,1735995032788,-19370.2340944,0.00018049,2]
[347634241,1735995032797,-272.848,0.0001814,2]
[347634243,1735995032806,-204.1634081,0.00018687,2]
[347634245,1735995032816,-394.0,0.00018735,2]
[347634247,1735995032826,-5000.0,0.0001888,2]
[347634249,1735995032836,-172.908,0.000189,2]
[347634252,1735995032846,-1147.77681496,0.000189,2]
[347634255,1735995032855,-4044.48167412,0.000189,2]
[347634258,1735995032864,-152.22,0.000189,2]
[347634260,1735995032874,-791.0,0.00019,2]
[347634262,1735995032886,-302.8788636,0.00019,2]
[347634263,1735995032896,-302.8788636,0.00019,2]
[347634265,1735995032905,-4044.48167408,0.00019038,2]
[347634267,1735995032915,-151.0,0.00019038,2]
[347634269,1735995032924,-151.0,0.00019038,2]
[347634271,1735995032933,-500.85212995,0.00019073,2]
[347634273,1735995032943,-299.01582691,0.00019073,2]
[347634275,1735995032952,-500.0,0.00019073,2]
[347634277,1735995032962,-500.0,0.00019073,2]
[347634279,1735995032971,-151.0,0.00019094,2]
[347634281,1735995032981,-169.405968,0.00019094,2]
[347634283,1735995032991,-151.0,0.00019095,2]
[347634284,1735995033000,-638.47899716,0.00019097,2]
[347634286,1735995033010,-8802.13022306,0.00019097,2]
[347634288,1735995033020,-500.0,0.00019097,2]
[347634290,1735995033030,-482.12055275,0.00019097,2]
[347634292,1735995033040,-500.0,0.00019097,2]
[347634294,1735995033051,-500.0,0.00019097,2]
[347634296,1735995033060,-193.66917823,0.00019097,2]
[347634298,1735995033070,-500.0,0.00019097,2]
[347634300,1735995033080,-500.0,0.00019097,2]
[347634302,1735995033090,-500.0,0.00019097,2]
[347634304,1735995033101,-500.0,0.00019097,2]
[347634306,1735995033111,-500.0,0.00019097,2]
[347634307,1735995033121,-500.0,0.00019097,2]
[347634309,1735995033133,-500.0,0.00019097,2]
[347634311,1735995033146,-500.0,0.00019097,2]
[347634313,1735995033156,-500.0,0.00019097,2]
[347634315,1735995033165,-500.0,0.00019097,2]
[347634317,1735995033176,-500.0,0.00019097,2]
[347634319,1735995033186,-500.0,0.00019097,2]
[347634321,1735995033196,-500.0,0.00019097,2]
[347634323,1735995033207,-500.0,0.00019097,2]
[347634324,1735995033219,-500.0,0.00019097,2]
[347634326,1735995033229,-500.0,0.00019097,2]
[347634328,1735995033239,-399.95022567,0.00019097,2]
[347634330,1735995033249,-500.0,0.00019097,2]
[347634332,1735995033259,-541.35130283,0.00019097,2]
[347634334,1735995033268,-500.0,0.00019097,2]
[347634335,1735995033278,-500.0,0.00019097,2]
[347634337,1735995033287,-500.0,0.00019097,2]
[347634339,1735995033297,-500.0,0.00019097,2]
[347634341,1735995033307,-500.0,0.00019097,2]
[347634343,1735995033317,-500.0,0.00019097,2]
[347634345,1735995033326,-554.31532864,0.00019097,2]
[347634347,1735995033335,-500.0,0.00019097,2]
[347634349,1735995033344,-500.0,0.00019097,2]
[347634351,1735995033354,-500.0,0.00019097,2]
[347634352,1735995033364,-500.0,0.00019097,2]
[347634354,1735995033374,-500.0,0.00019097,2]
[347634356,1735995033385,-500.0,0.00019097,2]
[347634358,1735995033395,-500.0,0.00019097,2]
[347634360,1735995033404,-500.0,0.00019097,2]
[347634362,1735995033413,-500.0,0.00019097,2]
[347634364,1735995033423,-500.0,0.00019097,2]
[347634366,1735995033433,-500.0,0.00019097,2]
[347634367,1735995033443,-500.0,0.00019097,2]
[347634369,1735995033453,-500.0,0.00019097,2]
[347634371,1735995033462,-500.0,0.00019097,2]
[347634373,1735995033472,-500.0,0.00019097,2]
[347634375,1735995033481,-500.0,0.00019097,2]
[347634377,1735995033490,-500.0,0.00019097,2]
[347634379,1735995033501,-588.36748304,0.00019097,2]
[347634381,1735995033511,-500.0,0.00019097,2]
[347634382,1735995033521,-500.0,0.00019097,2]
[347634384,1735995033530,-500.0,0.00019097,2]
[347634386,1735995033540,-500.0,0.00019097,2]
[347634388,1735995033549,-500.0,0.00019097,2]
[347634390,1735995033558,-500.0,0.00019097,2]
[347634392,1735995033568,-500.0,0.00019097,2]
[347634394,1735995033577,-500.0,0.00019097,2]
[347634395,1735995033587,-500.0,0.00019097,2]
[347634397,1735995033596,-500.0,0.00019097,2]
[347634399,1735995033606,-500.0,0.00019097,2]
[347634401,1735995033615,-500.0,0.00019097,2]
[347634403,1735995033625,-500.0,0.00019097,2]
[347634404,1735995033637,-500.0,0.00019097,2]
[347634406,1735995033646,-500.0,0.00019097,2]
[347634407,1735995033656,-500.0,0.00019097,2]
[347634408,1735995033665,-500.0,0.00019097,2]
[347634409,1735995033675,-500.0,0.00019097,2]
[347634410,1735995033685,-500.0,0.00019097,2]
[347634411,1735995033695,-500.0,0.00019097,2]
[347634412,1735995033705,-500.0,0.00019097,2]
[347634413,1735995033715,-500.0,0.00019097,2]
[347634414,1735995033726,-500.0,0.00019097,2]
[347634415,1735995033736,-500.0,0.00019097,2]
[347634416,1735995033746,-500.0,0.00019097,2]
[347634417,1735995033756,-500.0,0.00019097,2]
[347634418,1735995033766,-500.0,0.00019097,2]
[347634419,1735995033776,-500.0,0.00019097,2]
[347634420,1735995033919,-500.0,0.00019097,2]
[347634421,1735995033929,-500.0,0.00019097,2]
[347634422,1735995033938,-500.0,0.00019097,2]
[347634423,1735995033948,-612.60729109,0.00019097,2]
[347634424,1735995033957,-500.0,0.00019097,2]
[347634425,1735995033967,-500.0,0.00019097,2]
[347634426,1735995033977,-500.0,0.00019097,2]
[347634427,1735995033987,-500.0,0.00019097,2]
[347634428,1735995033996,-283.77026325,0.00019097,2]
[347634429,1735995034005,-500.0,0.00019097,2]
[347634430,1735995034014,-500.0,0.00019097,2]
[347634431,1735995034023,-500.0,0.00019097,2]
[347634432,1735995034033,-500.0,0.00019097,2]
[347634433,1735995034042,-500.0,0.00019097,2]
[347634434,1735995034051,-500.0,0.00019097,2]
[347634435,1735995034060,-500.0,0.00019097,2]
[347634436,1735995034069,-500.0,0.00019097,2]
[347634437,1735995034078,-500.0,0.00019097,2]
[347634438,1735995034087,-500.0,0.00019097,2]
[347634439,1735995034097,-500.0,0.00019097,2]
[347634440,1735995034107,-500.0,0.00019097,2]
[347634441,1735995034116,-500.0,0.00019097,2]
[347634442,1735995034125,-500.0,0.00019097,2]
[347634443,1735995034135,-500.0,0.00019097,2]
[347634444,1735995034145,-500.0,0.00019097,2]
[347634445,1735995034154,-500.0,0.00019097,2]
[347634446,1735995034164,-500.0,0.00019097,2]
[347634447,1735995034173,-500.0,0.00019097,2]
[347634448,1735995034182,-500.0,0.00019097,2]
[347634449,1735995034191,-500.0,0.00019097,2]
[347634450,1735995034201,-500.0,0.00019097,2]
[347634451,1735995034213,-500.0,0.00019097,2]
[347634452,1735995034222,-400.0,0.00019097,2]
[347634453,1735995034232,-500.0,0.00019097,2]
[347634454,1735995034241,-500.0,0.00019097,2]
[347634455,1735995034251,-500.0,0.00019097,2]
[347634456,1735995034260,-500.0,0.00019097,2]
[347634457,1735995034270,-500.0,0.00019097,2]
[347634458,1735995034279,-151.0,0.00019097,2]
[347634459,1735995034288,-151.0,0.00019097,2]
[347634460,1735995034298,-151.0,0.00019097,2]
[347634461,1735995034307,-151.0,0.00019097,4]
[347634462,1735995034317,-151.0,0.00019097,2]
[347634463,1735995034326,-292.533554,0.00019097,2]
[347634464,1735995034335,-151.0,0.00019097,2]
[347634465,1735995034345,-202.191606,0.00019097,2]
[347634466,1735995034354,-608197.59674178,0.00019098,7]
[347634467,1735995034369,-2785.76724905,0.00019098,7]
[347634468,1735995034394,-6582.57017056,0.00019098,7]
[347634469,1735995034405,-12030.45566815,0.00019098,7]
[347634488,1735995038666,-765.1845433,0.00018711,2]
[347634489,1735995038676,-765.1845433,0.000189,2]
[347634490,1735995038685,-174279.12832267,0.00019098,7]
[347634802,1735995043604,-503.5430529,0.00019098,7]
[347635570,1735996239870,-195.6370992,0.00016463,2]
[347635571,1735996239884,-195.6370992,0.00016629,2]
[347635572,1735996239894,-308.0188143,0.00017308,2]
[347635573,1735996239904,-300.0,0.00017548,2]
[347635574,1735996239916,-1420.76834866,0.00017549,2]
[347635575,1735996239932,-646.34677176,0.00017549,2]
[347635621,1735996242951,-2977.4,0.00017374,2]
[347635631,1735996243043,-2104.90621448,0.00017374,2]
[347635633,1735996243052,-22832.88487958,0.00017549,2]
[347635635,1735996243061,-5176.755206,0.00017606,2]
[347635637,1735996243071,-921.9722177,0.00017664,2]
[347635639,1735996243081,-3426.9500444,0.00017698,2]
[347635641,1735996243090,-250.0,0.00017858,2]
[347635642,1735996243099,-261.798,0.0001814,2]
[347635643,1735996243108,-369.823,0.00018735,2]
[347635644,1735996243119,-394.0,0.00018735,2]
[347635645,1735996243128,-3801.18086666,0.000189,2]
[347635646,1735996243137,-510.12302887,0.000189,2]
[347635648,1735996243147,-178.98330425,0.00018997,2]
[347635650,1735996243156,-173.361,0.00018998,2]
[347635653,1735996243168,-197.21972116,0.00018998,2]
[347635654,1735996243177,-178.98330425,0.00018998,2]
[347635656,1735996243187,-178.98330425,0.00018999,2]
[347635658,1735996243196,-302.8788636,0.00019,2]
[347635660,1735996243206,-178.98330425,0.00019,2]
[347635662,1735996243215,-3801.18086662,0.00019038,2]
[347635664,1735996243224,-152.1311832,0.00019073,2]
[347635665,1735996243234,-500.0,0.00019073,2]
[347635666,1735996243243,-501.688485,0.00019073,2]
[347635667,1735996243252,-500.0,0.00019073,2]
[347635668,1735996243262,-500.0,0.00019073,2]
[347635669,1735996243271,-500.0,0.00019097,2]
[347635670,1735996243281,-500.0,0.00019097,2]
[347635672,1735996243290,-500.0,0.00019097,2]
[347635673,1735996243300,-500.0,0.00019097,2]
[347635674,1735996243309,-500.0,0.00019097,2]
[347635675,1735996243319,-500.0,0.00019097,2]
[347635676,1735996243329,-500.0,0.00019097,2]
[347635677,1735996243338,-500.0,0.00019097,2]
[347635678,1735996243348,-500.0,0.00019097,2]
[347635679,1735996243357,-500.0,0.00019097,2]
[347635680,1735996243366,-416.13396683,0.00019097,2]
[347635681,1735996243376,-500.0,0.00019097,2]
[347635682,1735996243385,-500.0,0.00019097,2]
[347635683,1735996243394,-427.47172686,0.00019097,2]
[347635684,1735996243404,-500.0,0.00019097,2]
[347635685,1735996243413,-500.0,0.00019097,2]
[347635686,1735996243422,-289.12032447,0.00019097,2]
[347635687,1735996243433,-500.0,0.00019097,2]
[347635688,1735996243444,-500.0,0.00019097,2]
[347635689,1735996243453,-500.0,0.00019097,2]
[347635690,1735996243462,-500.0,0.00019097,2]
[347635691,1735996243472,-500.0,0.00019097,2]
[347635692,1735996243481,-500.0,0.00019097,2]
[347635693,1735996243491,-500.0,0.00019097,2]
[347635694,1735996243500,-397.41165278,0.00019097,2]
[347635695,1735996243510,-198.19669592,0.00019097,2]
[347635696,1735996243519,-500.0,0.00019097,2]
[347635697,1735996243529,-500.0,0.00019097,2]
[347635698,1735996243538,-500.0,0.00019097,2]
[347635699,1735996243548,-500.0,0.00019097,2]
[347635700,1735996243557,-500.0,0.00019097,2]
[347635701,1735996243567,-500.0,0.00019097,2]
[347635702,1735996243576,-500.0,0.00019097,2]
[347635703,1735996243585,-500.0,0.00019097,2]
[347635704,1735996243595,-500.0,0.00019097,2]
[347635705,1735996243604,-500.0,0.00019097,2]
[347635706,1735996243614,-500.0,0.00019097,2]
[347635707,1735996243623,-500.0,0.00019097,2]
[347635708,1735996243633,-500.0,0.00019097,2]
[347635709,1735996243642,-500.0,0.00019097,2]
[347635710,1735996243651,-500.0,0.00019097,2]
[347635711,1735996243661,-500.0,0.00019097,2]
[347635712,1735996243671,-500.0,0.00019097,2]
[347635713,1735996243681,-500.0,0.00019097,2]
[347635714,1735996243690,-500.0,0.00019097,2]
[347635715,1735996243700,-500.0,0.00019097,2]
[347635716,1735996243710,-500.0,0.00019097,2]
[347635717,1735996243719,-500.0,0.00019097,2]
[347635718,1735996243729,-500.0,0.00019097,2]
[347635719,1735996243740,-500.0,0.00019097,2]
[347635720,1735996243751,-500.0,0.00019097,2]
[347635721,1735996243760,-500.0,0.00019097,2]
[347635722,1735996243770,-500.0,0.00019097,2]
[347635723,1735996243779,-500.0,0.00019097,2]
[347635724,1735996243788,-500.0,0.00019097,2]
[347635725,1735996243799,-500.0,0.00019097,2]
[347635726,1735996243808,-500.0,0.00019097,2]
[347635727,1735996243818,-500.0,0.00019097,2]
[347635728,1735996243830,-500.0,0.00019097,2]
[347635729,1735996243839,-500.0,0.00019097,2]
[347635730,1735996243849,-500.0,0.00019097,2]
[347635731,1735996243859,-500.0,0.00019097,2]
[347635732,1735996243979,-500.0,0.00019097,2]
[347635733,1735996243990,-500.0,0.00019097,2]
[347635734,1735996244000,-500.0,0.00019097,2]
[347635735,1735996244010,-500.0,0.00019097,2]
[347635736,1735996244019,-500.0,0.00019097,2]
[347635737,1735996244030,-500.0,0.00019097,2]
[347635738,1735996244040,-500.0,0.00019097,2]
[347635739,1735996244050,-500.0,0.00019097,2]
[347635740,1735996244060,-500.0,0.00019097,2]
[347635741,1735996244070,-558.74466979,0.00019097,2]
[347635742,1735996244079,-500.0,0.00019097,2]
[347635743,1735996244088,-500.0,0.00019097,2]
[347635744,1735996244098,-500.0,0.00019097,2]
[347635745,1735996244108,-500.0,0.00019097,2]
[347635746,1735996244117,-500.0,0.00019097,2]
[347635747,1735996244126,-500.0,0.00019097,2]
[347635748,1735996244136,-500.0,0.00019097,2]
[347635749,1735996244145,-500.0,0.00019097,2]
[347635750,1735996244154,-500.0,0.00019097,2]
[347635751,1735996244164,-500.0,0.00019097,2]
[347635752,1735996244173,-500.0,0.00019097,2]
[347635753,1735996244182,-500.0,0.00019097,2]
[347635754,1735996244191,-500.0,0.00019097,2]
[347635755,1735996244202,-500.0,0.00019097,2]
[347635756,1735996244211,-500.0,0.00019097,2]
[347635757,1735996244220,-500.0,0.00019097,2]
[347635758,1735996244230,-500.0,0.00019097,2]
[347635759,1735996244239,-500.0,0.00019097,2]
[347635760,1735996244248,-570.38363086,0.00019097,2]
[347635761,1735996244258,-500.0,0.00019097,2]
[347635762,1735996244271,-500.0,0.00019097,2]
[347635763,1735996244280,-500.0,0.00019097,2]
[347635764,1735996244290,-500.0,0.00019097,2]
[347635765,1735996244299,-500.0,0.00019097,2]
[347635766,1735996244308,-500.0,0.00019097,2]
[347635767,1735996244317,-500.0,0.00019097,2]
[347635768,1735996244328,-500.0,0.00019097,2]
[347635769,1735996244338,-500.0,0.00019097,2]
[347635770,1735996244348,-500.0,0.00019097,2]
[347635771,1735996244358,-500.0,0.00019097,2]
[347635772,1735996244369,-500.0,0.00019097,2]
[347635773,1735996244378,-500.0,0.00019097,2]
[347635774,1735996244387,-500.0,0.00019097,2]
[347635775,1735996244396,-500.0,0.00019097,2]
[347635776,1735996244406,-500.0,0.00019097,2]
[347635777,1735996244416,-500.0,0.00019097,2]
[347635778,1735996244426,-500.0,0.00019097,2]
[347635779,1735996244436,-500.0,0.00019097,2]
[347635780,1735996244445,-500.0,0.00019097,2]
[347635781,1735996244454,-500.0,0.00019097,2]
[347635782,1735996244463,-500.0,0.00019097,2]
[347635783,1735996244474,-500.0,0.00019097,2]
[347635784,1735996244483,-500.0,0.00019097,2]
[347635785,1735996244492,-500.0,0.00019097,2]
[347635786,1735996244501,-500.0,0.00019097,2]
[347635787,1735996244511,-500.0,0.00019097,2]
[347635788,1735996244520,-645.20570137,0.00019097,2]
[347635789,1735996244529,-500.0,0.00019097,2]
[347635790,1735996244539,-500.0,0.00019097,2]
[347635791,1735996244548,-500.0,0.00019097,2]
[347635792,1735996244558,-500.0,0.00019097,2]
[347635793,1735996244567,-500.0,0.00019097,2]
[347635794,1735996244576,-500.0,0.00019097,2]
[347635795,1735996244586,-500.0,0.00019097,2]
[347635796,1735996244595,-500.0,0.00019097,2]
[347635797,1735996244604,-500.0,0.00019097,2]
[347635798,1735996244614,-500.0,0.00019097,2]
[347635799,1735996244624,-500.0,0.00019097,2]
[347635800,1735996244633,-500.0,0.00019097,2]